Cogmind - Beta 11 X2 --- EXPLORER MODE // 2021.02.10 @ 21:06:02 // Winter2019/RPGLIKE Player: jfk Result: Escaped! Performance ------------- Evolutions (9) 4500 Regions Visited (16) 3200 Robots Destroyed (697) 3485 Value Destroyed (41709) 41709 Prototype IDs (43) 860 Alien Tech Used (4) 800 Bonus (33782) 33782 TOTAL SCORE: 88336 Bonus ------- Triggered High Security 1000 High Alert Combat Kills 24601 Follower Combat Kills 1023 Network Hubs Disabled 400 A7 Reached Mainframe 300 Met R17 at Cetus 500 Scanned by Researcher 1000 Pursued by Intercept 1000 Acquired SGEMP 2000 Win 3000 Friendly Fire -1042 Cogmind --------- Core Integrity 1990/2250 Matter 325/925 Energy 1168/1185 System Corruption 0% Temperature Cool (-189) Movement Walking (116) Location To Epsilon Eridani Parts ------- > --- POWER (4) -------- Fusion Reactor Particle Reactor Reinforced Quantum Reactor > --- PROPULSION (6) --- Enhanced Biometal Leg Centrium Leg Centrium Leg Centrium Leg Centrium Leg High-density Centrium Leg > --- UTILITY (10) ----- Advanced Power Amplifier Advanced Cryofiber Web Advanced Cooling System Spectral Analyzer Experimental Target Analyzer Improved Weapon Cycler Improved Transmission Jammer Experimental Phase Shifter Experimental Focal Shield EM Dispersion Field > --- WEAPON (6) ------- EMDS Enhanced Nova Cannon Helical Railgun Helical Railgun Gamma Bomb Array > --- INVENTORY (6) ---- EMDS Tactical Quantum Warhead Nanosword Peak State ------------ > --- POWER ------------ Fusion Reactor Quantum Reactor Reinforced Quantum Reactor Reinforced Quantum Reactor > --- PROPULSION ------- Enhanced Biometal Leg Enhanced Biometal Leg Centrium Leg Centrium Leg Centrium Leg High-density Centrium Leg > --- UTILITY ---------- Advanced Power Amplifier Advanced Cryofiber Web Advanced Cooling System Spectral Analyzer Experimental Target Analyzer Improved Weapon Cycler Improved Transmission Jammer Experimental Phase Shifter Experimental Focal Shield EM Dispersion Field > --- WEAPON ----------- Advanced Variable Charge Gun EMDS Helical Railgun Helical Railgun Tactical Quantum Warhead > --- INVENTORY -------- Particle Reactor EMDS Linear Accelerator Gamma Bomb Array Nanosword [Rating: 226] Favorites ----------- Power Improved Deuterium Engine Engine Improved Deuterium Engine Power Core Fission Core Reactor Quantum Reactor Propulsion Centrium Leg Leg Centrium Leg Utility Advanced Power Amplifier Device Advanced Power Amplifier Processor Spectral Analyzer Hackware System Mapper Protection Utility Shielding Weapon EMDS Energy Gun Advanced Variable Charge Gun Energy Cannon EMDS Ballistic Gun Helical Railgun Ballistic Cannon Compact Mass Driver Launcher Gamma Bomb Array Slashing Weapon Nanosword Piercing Weapon Spear Build | -11 -10 -9 -8 -7 -6 -5 -5 -5 -5 -5 -4 -3 -2 -2 -2 -1 ------- Run | Scr Mat Mat Mat Fac Fac Fac Ext Cet Arc Hub Fac Res Res Tes Sec Acc Slots Evolved 22 | 6 . . 3 3 1 1 1 . . 3 . 2 . 2 . . Power 3 | 1 . . 1 . . . . . . 1 . . . . . . Propulsion 5 | 1 . . 1 1 . . . . . . . 2 . . . . Utility 9 | 3 . . 1 . 1 1 . . . 2 . . . 1 . . Weapon 5 | 1 . . . 2 . . 1 . . . . . . 1 . . Parts Attached 176 | 10 3 8 13 13 15 9 4 4 . 20 1 12 . 27 26 11 Power 22 | 2 1 3 3 1 3 . . 1 . 1 . 4 . . 2 1 Engine 12 | 2 1 3 2 1 2 . . . . . . 1 . . . . Core 2 | . . . 1 . 1 . . . . . . . . . . . Reactor 8 | . . . . . . . . 1 . 1 . 3 . . 2 1 Propulsion 37 | 2 . 2 1 5 4 1 1 1 . 4 . 5 . 5 4 2 Treads . | . . . . . . . . . . . . . . . . . Leg 37 | 2 . 2 1 5 4 1 1 1 . 4 . 5 . 5 4 2 Wheel . | . . . . . . . . . . . . . . . . . Hover . | . . . . . . . . . . . . . . . . . Flight . | . . . . . . . . . . . . . . . . . Utility 45 | 4 . 1 3 . 4 4 1 . . 10 1 . . 8 8 1 Device 35 | 1 . . 2 . 3 4 1 . . 9 1 . . 6 7 1 Storage . | . . . . . . . . . . . . . . . . . Processor 4 | 1 . . . . . . . . . 1 . . . 1 1 . Hackware 1 | . . . . . . . . . . . . . . 1 . . Protection 5 | 2 . 1 1 . 1 . . . . . . . . . . . Artifact . | . . . . . . . . . . . . . . . . . Weapon 72 | 2 2 2 6 7 4 4 2 2 . 5 . 3 . 14 12 7 Energy Gun 18 | 2 . 1 5 . 2 . . 1 . 1 . . . 4 . 2 Energy Cannon 6 | . . . . 1 1 . . . . 2 . . . 1 . 1 Ballistic Gun 19 | . 1 1 1 4 1 1 1 1 . 2 . . . 4 2 . Ballistic Cannon 9 | . 1 . . . . 2 . . . . . 1 . 4 . 1 Launcher 13 | . . . . 2 . 1 . . . . . . . 1 6 3 Special Weapon . | . . . . . . . . . . . . . . . . . Impact Weapon . | . . . . . . . . . . . . . . . . . Slashing Weapon 5 | . . . . . . . . . . . . 1 . . 4 . Piercing Weapon 2 | . . . . . . . 1 . . . . 1 . . . . Special Melee Weapon . | . . . . . . . . . . . . . . . . . Unidentified Prototypes 40 | . . . 3 2 1 1 . 3 . 7 . 3 . 10 9 1 Parts Lost . | . . . . . . . . . . . . . . . . . Power . | . . . . . . . . . . . . . . . . . Propulsion . | . . . . . . . . . . . . . . . . . Utility . | . . . . . . . . . . . . . . . . . Weapon . | . . . . . . . . . . . . . . . . . Highest Loss Streak . | . . . . . . . . . . . . . . . . . Average Slot Usage (%) 95 | . 100 99 93 99 100 97 93 93 94 92 95 92 91 92 95 91 Engine 6 | . 20 19 17 12 11 11 10 9 5 4 4 2 . . . . Core 1 | . . . 2 6 5 5 5 5 5 4 4 3 . . . . Reactor 7 | . . . . . . . . . 5 6 9 10 16 15 14 12 Leg 21 | . 20 19 19 24 23 22 21 20 21 19 18 20 25 21 22 20 Device 27 | . 10 10 14 12 24 32 35 36 36 35 36 33 33 30 29 30 Processor 5 | . 10 10 7 6 5 1 . . . 2 4 4 4 5 7 7 Protection 3 | . 20 20 15 12 3 . . . . . . . . . . . Energy Gun 3 | . 10 9 7 2 1 5 5 5 5 3 4 3 . 2 3 1 Energy Cannon 2 | . . . . 3 5 5 1 . . 3 4 4 4 3 3 3 Ballistic Gun 6 | . 6 10 7 16 15 7 3 5 5 3 4 3 . 5 5 7 Launcher 1 | . . . . . . 1 5 5 5 2 . . . . . 2 Naked Turns . | . . . . . . . . . . . . . . . . . Heaviest Build 159 | 15 18 29 41 51 59 64 68 77 77 117 108 122 122 128 159 155 Greatest Support 202 | 30 30 33 50 82 82 83 88 98 98 126 126 176 176 188 202 202 Greatest Overweight (x) 1 | . . . 1 . . . . . . . . . . 1 . . Average Overweight (x) . | . . . . . . . . . . . . . . . . . Largest Inventory Capacity 6 | 2 2 4 4 4 6 6 6 6 6 6 6 6 6 6 6 6 Average Capacity 5 | 1 2 3 4 4 5 6 6 6 6 6 6 6 6 6 6 6 Most Carried 6 | 2 1 4 4 4 6 6 6 6 6 6 4 6 6 6 6 6 Average Carried 4 | 1 . 1 3 2 4 5 5 6 6 5 3 3 6 5 5 4 Final Capacity 6 | 2 2 4 4 4 6 6 6 6 6 6 6 6 6 6 6 6 Final Carried 6 | . . 4 3 3 6 6 6 6 6 3 3 6 6 6 6 4 Class Distribution -------------------- 23% | Generator-Executioner 18% | Generator-Mutant 14% | Generator-Gunner 13% | Hacker-Mutant 12% | Scavenger-Tank 11% | Scavenger-Executioner 4% | Scavenger-Mutant Dominant Class ---------------- Hacker-Mutant | -10/Materials Hacker-Mutant | -9/Materials Generator-Mutant | -8/Materials Generator-Gunner | -7/Factory Generator-Gunner | -6/Factory Generator-Gunner | -5/Factory Generator-Mutant | -5/Extension Generator-Mutant | -5/Cetus Generator-Mutant | -5/Archives Generator-Mutant | -5/Hub_04(d) Scavenger-Tank | -4/Factory Scavenger-Tank | -3/Research Scavenger-Tank | -2/Research Scavenger-Executioner | -2/Testing Generator-Executioner | -2/Section 7 Generator-Executioner | -1/Access Resources | -11 -10 -9 -8 -7 -6 -5 -5 -5 -5 -5 -4 -3 -2 -2 -2 -1 ----------- Run | Scr Mat Mat Mat Fac Fac Fac Ext Cet Arc Hub Fac Res Res Tes Sec Acc Matter Collected 20297 | 300 128 230 513 239 788 84 461 332 16 1101 876 552 65 2992 7006 4614 Remotely . | . . . . . . . . . . . . . . . . . Salvage Created 37444 | . 363 1041 805 467 1693 307 751 484 134 2015 1653 1068 142 5155 10194 11172 Parts 1590 | . 24 57 49 31 83 15 37 21 6 92 69 36 11 230 386 443 Haulers Intercepted 16 | . 2 4 4 . . 1 . . . . . . . 1 2 2 Recyclers Shooed 7 | . . . . . . . . . . 1 2 1 . . . 3 Parts Field Recycled . | . . . . . . . . . . . . . . . . . Retrieved Matter . | . . . . . . . . . . . . . . . . . Parts Self-Destructed . | . . . . . . . . . . . . . . . . . Prevented . | . . . . . . . . . . . . . . . . . Kills | -11 -10 -9 -8 -7 -6 -5 -5 -5 -5 -5 -4 -3 -2 -2 -2 -1 ------- Run | Scr Mat Mat Mat Fac Fac Fac Ext Cet Arc Hub Fac Res Res Tes Sec Acc Combat Hostiles Destroyed 533 | . 8 20 13 12 27 4 12 10 3 25 29 15 4 61 150 140 Melee 10 | . . . . . . . . . . 3 . . . 1 6 . Guns 261 | . 7 19 13 9 19 2 9 9 3 11 14 2 . 23 68 53 Cannons 135 | . . . . 3 8 2 2 . . 7 11 5 4 22 48 23 AOE 53 | . 1 . . . . . . 1 . 3 . . . 4 12 32 Classes Destroyed 24 | . 5 2 2 . 2 . 2 . . 2 1 1 . 5 2 . Worker 33 | . 1 1 1 . . . . . . 5 4 1 . 4 4 12 Builder 19 | . . . . . . . . . . 3 3 . . 3 5 5 Tunneler 4 | . . . . . . . 1 . . . 1 . . . . 2 Hauler 16 | . 2 4 4 . . 1 . . . . . . . 1 2 2 Recycler 15 | . . 1 . 1 1 . . . . 1 . . . 2 5 4 Carrier 9 | . . . . . . . . . . . . . . . 4 5 Mechanic 8 | . . . . . . . . . . . . . . 1 5 2 Operator 11 | . . . 1 . 1 3 . . . 1 1 1 . 2 1 . Watcher 30 | . 3 3 2 . 1 2 1 2 . 2 2 1 . 3 4 4 Swarmer 58 | . 4 2 5 6 8 . 2 2 . 3 12 . 3 4 . 7 Saboteur 15 | . . . . . . . . . . . . 1 . . 7 7 Grunt 198 | . 4 11 1 3 6 4 4 3 . 7 8 3 . 26 61 57 Brawler 23 | . . . . . 2 . . . . . 2 2 . 2 14 1 Duelist 17 | . . . . . . . . . . . 1 . . 1 7 8 Protector 12 | . . . . . . . . . . 1 . . . 2 3 6 Researcher 12 | . . . . . . . . . . . . . . 8 4 . Sentry 54 | . . 7 6 3 4 . 4 . 3 1 2 5 1 6 4 8 Hunter 28 | . . . 1 . 2 . . . . 1 2 3 . 5 7 7 Programmer 67 | . . . . . 5 . . . . 6 2 2 . 11 23 18 Behemoth 8 | . . . . . . . 2 . . 1 . . . . 2 3 Cetus Guard 5 | . . . . . . . . 5 . . . . . . . . Enhanced Grunt 2 | . . . . . . . . . . 2 . . . . . . Lightning 5 | . . . . . . . . . . 5 . . . . . . Tracker 7 | . . . . . . . . . . . . . . . 5 2 Combat Programmer 7 | . . . . . . . . . . . . . . . 5 2 Investigator 4 | . . . . . . . . . . . . . . . 2 2 Striker 13 | . . . . . . . . . . . . . . 2 3 8 Executioner 13 | . . . . . . . . . . . . . . . 7 6 Alpha 7 3 | . . . . . . . . . . . . . . 1 2 . Fortress 1 | . . . . . . . . . . . . . . 1 . . Best Kill Streak 43 | . 3 6 3 5 6 4 5 4 3 8 16 5 4 23 25 43 Combat Bots Only 28 | . 2 6 3 5 5 4 4 4 3 4 11 4 4 13 24 28 Max Kills in Single Turn 8 | . 1 1 2 1 2 1 2 2 1 8 3 2 1 4 5 4 Gunslinging 1 | . . . 1 . . . 1 . . . . . . . . . Exploded 5 | . 1 . . . . . . 1 . 2 . . . 1 5 4 Melee 1 | . . . . . . . . . . 1 . . . 1 1 . Uniques/NPCs Destroyed 1 | . . . . . . . . 1 . . . . . . . . A7 (-5/Cetus) Combat | -11 -10 -9 -8 -7 -6 -5 -5 -5 -5 -5 -4 -3 -2 -2 -2 -1 -------- Run | Scr Mat Mat Mat Fac Fac Fac Ext Cet Arc Hub Fac Res Res Tes Sec Acc Damage Taken 18543 | . 160 411 568 528 693 81 486 345 47 1157 409 146 31 1962 6831 4688 Core 14357 | . 96 280 422 375 501 64 379 276 39 923 312 112 23 1525 5352 3678 Absorbed by Shields 1579 | . . . . . 59 28 187 132 18 428 157 58 12 140 280 80 Redirected to Core 12894 | . 91 252 307 357 475 64 348 225 26 803 285 90 23 1422 4803 3323 Core Remaining (%) 90 | 100 98 100 68 93 94 . . . . 82 97 100 . . 74 88 Volleys Fired 1200 | . 29 62 51 22 43 17 61 37 12 96 54 40 5 204 285 182 Largest 5 | . 2 2 2 4 4 4 2 2 2 3 3 3 2 4 5 5 Hottest 466 | . 90 68 80 143 172 172 114 114 115 345 185 185 130 411 411 466 Shots Fired 3573 | . 58 107 101 78 165 58 115 62 21 175 158 106 10 580 1013 766 Gun 2307 | . 47 107 101 61 126 41 96 55 21 120 104 59 . 399 554 416 Cannon 1093 | . 11 . . 17 39 16 14 . . 55 54 47 10 167 416 247 Launcher 173 | . . . . . . 1 5 7 . . . . . 14 43 103 Special . | . . . . . . . . . . . . . . . . . Kinetic 1777 | . 25 58 51 56 118 26 42 29 12 72 54 40 5 296 492 401 Thermal 808 | . 4 . 20 22 47 31 68 26 9 48 50 26 . 154 220 83 Explosive 22 | . . . . . . 1 5 7 . . . . . . 9 . Electromagnetic 965 | . 29 49 30 . . . . . . 55 54 40 5 130 291 282 Robot Hit Streak 101 | . 8 26 40 48 40 57 25 24 10 71 26 101 18 53 79 58 Robot Miss Streak 3 | . 1 2 2 3 3 1 2 1 1 2 2 1 . 2 3 3 Penetration Max 3 | . . . . . 1 1 3 1 1 1 1 1 . 1 2 1 Secondary Targets 6 | . . . 3 . . . 2 1 . . . . . . . . Max Gunslinging Chain 1 | . . . 1 . . . 1 1 . . . . . . . . Shots Hit Robots 2847 | . 40 101 90 51 109 41 94 51 18 169 109 97 8 487 829 553 Core Hits 1643 | . 24 50 34 29 86 18 41 39 8 84 56 29 5 223 400 517 Critical Hits 432 | . 1 2 1 . 9 6 21 9 6 26 19 13 . 53 160 106 Critical Kills 133 | . 1 1 . . 5 3 4 4 2 10 9 2 . 16 42 34 Critical Parts Destroyed 234 | . . 1 1 . 4 3 10 4 4 15 9 9 . 26 91 57 Melee Attacks 68 | . . . . . . . . . . 22 2 . . 6 38 . Impact . | . . . . . . . . . . . . . . . . . Slashing 44 | . . . . . . . . . . . . . . 6 38 . Piercing 24 | . . . . . . . . . . 22 2 . . . . . Sneak Attacks . | . . . . . . . . . . . . . . . . . Combat Hostiles . | . . . . . . . . . . . . . . . . . Follow-up Attacks . | . . . . . . . . . . . . . . . . . Damage Inflicted 114663 | . 629 1650 1615 1072 2461 979 2083 1668 419 6151 4735 3447 398 17080 38804 31472 Guns 51972 | . 445 1523 1608 586 1484 520 1534 731 419 2906 2235 1315 . 8507 16463 11696 Cannons 37292 | . 53 . . 486 876 356 292 . . 938 2253 2132 398 6636 14070 8802 Explosions 22352 | . 105 127 . . 101 103 257 937 . 1619 247 . . 1605 6277 10974 Melee 2880 | . . . . . . . . . . 665 . . . 221 1994 . Ramming 167 | . 26 . 7 . . . . . . 23 . . . 111 . . Kinetic 39707 | . 139 787 720 491 1285 187 398 156 255 1763 974 1115 186 6645 13504 11102 Thermal 26118 | . 142 127 377 581 1075 689 1428 575 164 1348 1418 639 . 4337 7289 5929 Explosive 5760 | . . . . . 101 103 257 937 . . . . . . 4362 . Electromagnetic 40031 | . 322 736 511 . . . . . . 2352 2343 1693 212 5766 11655 14441 Impact . | . . . . . . . . . . . . . . . . . Slashing 2215 | . . . . . . . . . . . . . . 221 1994 . Piercing 665 | . . . . . . . . . . 665 . . . . . . Highest Corruption 6 | . 1 . . 2 1 . . . . 6 . . . . . . Average Corruption 2 | . 1 . . 1 1 . . . . 4 . . . . . . Corruption Purged . | . . . . . . . . . . . . . . . . . Effects 30 | . 3 . . 3 5 . . . . 19 . . . . . . Message Errors 11 | . 3 . . 1 3 . . . . 4 . . . . . . Matter Fused 4 | . . . . . . . . . . 4 . . . . . . Heat Flow Errors 2 | . . . . . . . . . . 2 . . . . . . Energy Discharges 6 | . . . . 1 2 . . . . 3 . . . . . . Data Loss (minor) 7 | . . . . 1 . . . . . 6 . . . . . . Overload Shots 68 | . . . . 3 . . . . . 1 . . . 16 35 13 Effects 1 | . . . . . . . . . . . . . . . 1 . Energy Bleed 1 | . . . . . . . . . . . . . . . 1 . Overflow Damage 2050 | . . . . 31 22 20 1 . . 217 87 47 . 260 693 672 Projectiles 909 | . . . . 31 22 20 1 . . 78 53 47 . 132 333 192 Explosions 1023 | . . . . . . . . . . 139 34 . . 119 251 480 Melee 118 | . . . . . . . . . . . . . . 9 109 . Knockbacks 45 | . 1 . . . . . . . . . . 4 . 11 24 5 Impact 1 | . . . . . . . . . . . . . . 1 . . Kinetic 40 | . 1 . . . . . . . . . . 4 . 10 21 4 Secondary 4 | . . . . . . . . . . . . . . . 3 1 Self-Inflicted Damage 719 | . 24 98 . . . 60 . . . 96 . . . . 149 292 Shots 25 | . 1 3 . . . 1 . . . 2 . . . . 5 13 Rammed . | . . . . . . . . . . . . . . . . . Targets Rammed 23 | . 8 . 2 . . . . . . 1 . . . 12 . . Kicked 23 | . 8 . 2 . . . . . . 1 . . . 12 . . Crushed . | . . . . . . . . . . . . . . . . . Highest Temperature 530 | . 251 330 116 180 255 . . . . 207 22 27 . 530 138 326 Average Temperature 63 | . 71 95 31 67 48 . . . . 34 8 8 . 66 35 123 Received Heat Transfer 4151 | . 105 213 252 102 157 18 121 42 6 171 66 52 6 450 1767 623 Effects 8 | . . 3 . . . . . . . . . . . 4 . 1 Shutdowns 3 | . . . . . . . . . . . . . . 3 . . Energy Bleed 2 | . . 1 . . . . . . . . . . . 1 . . Interference 3 | . . 2 . . . . . . . . . . . . . 1 Siege Activations . | . . . . . . . . . . . . . . . . . Robots Corrupted 81 | . . 2 . . . . . . . 4 4 9 . 11 16 35 Combat Hostiles 70 | . . 1 . . . . . . . 1 4 8 . 9 15 32 Parts Fried 275 | . 1 3 4 . . . 2 . . 12 15 11 . 43 66 118 Impact Corruptions 1 | . . . . . . . . . . . . . . 1 . . Robots Melted 7 | . . . . . . . 1 . . . . . . 2 . 4 Combat Hostiles 3 | . . . . . . . 1 . . . . . . 2 . . Parts Melted 38 | . . . 1 1 2 4 4 . 2 2 1 1 . 10 5 5 Heat Transferred 29387 | . 211 200 740 779 1443 999 2109 888 222 1496 1741 777 . 5088 7694 5000 Parts Sabotaged 9 | . . . . . . . . . . . . . . . 2 7 Parts Stolen . | . . . . . . . . . . . . . . . . . Parts Stripped . | . . . . . . . . . . . . . . . . . Power Chain Reactions 62 | . 2 3 . . . . . . . 3 2 . . 4 9 39 Missiles Intercepted . | . . . . . . . . . . . . . . . . . Alert | -11 -10 -9 -8 -7 -6 -5 -5 -5 -5 -5 -4 -3 -2 -2 -2 -1 ------- Run | Scr Mat Mat Mat Fac Fac Fac Ext Cet Arc Hub Fac Res Res Tes Sec Acc Peak Influence 6004 | . 164 370 368 243 490 379 485 511 299 1331 979 782 341 1289 4051 6004 Initial 1843 | . . 14 79 69 . 95 35 16 142 71 478 363 211 143 355 1843 Average 1363 | . 91 178 129 130 198 194 215 289 269 656 703 539 243 697 2722 4396 Maximum Alert Level 5 | . . 1 1 1 2 1 2 2 1 4 3 3 1 4 5 5 Low Security (%) 29 | 100 100 51 89 79 63 56 31 47 15 30 . . . 5 . . Level 1 13 | . . 48 10 20 12 43 61 11 84 8 . 2 100 12 5 . Level 2 15 | . . . . . 23 . 6 41 . 3 50 89 . 35 9 . Level 3 10 | . . . . . . . . . . 46 49 8 . 40 5 . Level 4 3 | . . . . . . . . . . 10 . . . 6 10 . Level 5 2 | . . . . . . . . . . . . . . . 3 17 High Security 24 | . . . . . . . . . . . . . . . 65 82 Max Security . | . . . . . . . . . . . . . . . . . Sterilizations 2 | . . . . . . . . . . . . . . . 1 1 Squads Dispatched 132 | . . 3 1 7 5 2 2 1 . 10 5 4 . 15 45 32 Investigation 8 | . . . . 3 1 . 2 1 . . 1 . . . . . Extermination 19 | . . . . 1 3 . . . . 2 1 2 . 5 4 1 Reinforcement 27 | . . 3 1 . 1 2 . . . 5 2 1 . 6 5 1 Assault 59 | . . . . . . . . . . . 1 1 . 4 29 24 Garrison 9 | . . . . 3 . . . . . 3 . . . . . 3 Intercept 10 | . . . . . . . . . . . . . . . 7 3 Construction Impeded 4 | . . . . . . . . . . 1 1 . . . 1 1 Haulers Reinforced 4 | . . . . . . 1 . . . . 1 . . . 2 . Stealth | -11 -10 -9 -8 -7 -6 -5 -5 -5 -5 -5 -4 -3 -2 -2 -2 -1 --------- Run | Scr Mat Mat Mat Fac Fac Fac Ext Cet Arc Hub Fac Res Res Tes Sec Acc Distress Signals 17 | . 1 1 6 1 1 . 3 2 . 1 1 . . . . . Communications Jammed 264 | . . . . . 16 10 5 . 1 39 5 2 2 5 82 97 Distress Signals 262 | . . . . . 16 10 5 . 1 39 5 2 2 3 82 97 Times Spotted 840 | . 17 30 33 15 31 9 31 19 5 57 39 21 3 87 236 207 Peak Tracking Total 21 | . 2 5 7 5 4 4 5 5 2 8 6 5 2 7 21 17 Tactical Retreats 44 | . . 1 3 1 2 . 7 1 . 12 . . . 7 8 2 Traps | -11 -10 -9 -8 -7 -6 -5 -5 -5 -5 -5 -4 -3 -2 -2 -2 -1 ------- Run | Scr Mat Mat Mat Fac Fac Fac Ext Cet Arc Hub Fac Res Res Tes Sec Acc Traps Triggered 24 | . 1 2 . 2 2 . 2 . . 2 1 2 1 4 2 3 Indirectly 1 | . . . . . . . . . . . . . . . . 1 Trap Hack Attempts . | . . . . . . . . . . . . . . . . . Triggered . | . . . . . . . . . . . . . . . . . Disarmed . | . . . . . . . . . . . . . . . . . Reprogrammed . | . . . . . . . . . . . . . . . . . Reused . | . . . . . . . . . . . . . . . . . Traps Extracted . | . . . . . . . . . . . . . . . . . Installed . | . . . . . . . . . . . . . . . . . Triggered 1 | . . 1 . . . . . . . . . . . . . . Machines | -11 -10 -9 -8 -7 -6 -5 -5 -5 -5 -5 -4 -3 -2 -2 -2 -1 ---------- Run | Scr Mat Mat Mat Fac Fac Fac Ext Cet Arc Hub Fac Res Res Tes Sec Acc Machines Disabled 108 | . 1 2 1 1 3 3 1 2 4 26 16 . . 11 29 8 Max in Single Turn 15 | . 1 1 1 1 3 2 1 . 1 15 8 . . 2 3 1 Garrison Access 4 | . . . 1 . . . . . . . . . . 1 . 2 Network Hub 2 | . . . . . . . . . . 2 . . . . . . Machines Sabotaged . | . . . . . . . . . . . . . . . . . Garrisons Compromised . | . . . . . . . . . . . . . . . . . Overloaded Fab Kills . | . . . . . . . . . . . . . . . . . Fab Network Shutdowns 1 | . . . . . 1 . . . . . . . . . . . Hacking | -11 -10 -9 -8 -7 -6 -5 -5 -5 -5 -5 -4 -3 -2 -2 -2 -1 --------- Run | Scr Mat Mat Mat Fac Fac Fac Ext Cet Arc Hub Fac Res Res Tes Sec Acc Machines Accessed 37 | . 2 . 3 3 2 2 8 3 1 . 2 3 . 4 3 1 Terminals 27 | . 2 . 2 1 1 2 8 3 . . . 3 . 2 3 . Fabricators 5 | . . . . 1 1 . . . . . 2 . . 1 . . Repair Stations . | . . . . . . . . . . . . . . . . . Recycling Units . | . . . . . . . . . . . . . . . . . Scanalyzers 1 | . . . . . . . . . . . . . . 1 . . Garrison Access 3 | . . . 1 1 . . . . . . . . . . . 1 Total Hacks 108 | . 6 . 3 8 7 4 21 7 16 . 10 8 . 11 6 1 Successful 59 | . 2 . 3 4 3 1 7 6 16 . 4 1 . 6 5 1 Failed 49 | . 4 . . 4 4 3 14 1 . . 6 7 . 5 1 . Catastrophic 5 | . . . . . 1 . . . . . . 3 . 1 . . Database Lockouts . | . . . . . . . . . . . . . . . . . Manual 17 | . . . 2 1 5 2 . 1 . . . 4 . 2 . . Terminals 70 | . 6 . 2 3 5 4 21 7 . . . 8 . 8 6 . Fabricators 16 | . . . . 3 2 . . . . . 10 . . 1 . . Repair Stations . | . . . . . . . . . . . . . . . . . Recycling Units . | . . . . . . . . . . . . . . . . . Scanalyzers 2 | . . . . . . . . . . . . . . 2 . . Garrison Access 4 | . . . 1 2 . . . . . . . . . . . 1 Terminal Hacks 48 | . 2 . 2 3 1 1 7 6 16 . . 1 . 4 5 . Record 26 | . . . . 1 . . . 5 16 . . . . 1 3 . Part Schematic 1 | . . . . 1 . . . . . . . . . . . . Robot Schematic 1 | . . . . . . . 1 . . . . . . . . . Robot Analysis 1 | . . . . . . . . . . . . . . 1 . . Prototype ID Bank 3 | . 1 . 1 . . . . . . . . . . 1 . . Open Door 8 | . . . . . . . 6 1 . . . . . . 1 . Level Access Points 2 | . . . 1 . . 1 . . . . . . . . . . Branch Access Points 1 | . . . . . 1 . . . . . . . . . . . Alert Level 1 | . . . . . . . . . . . . . . 1 . . Unreport Threat 1 | . . . . . . . . . . . . 1 . . . . Dispatch Records 1 | . . . . . . . . . . . . . . . 1 . Recall Investigation 1 | . . . . 1 . . . . . . . . . . . . Registered Prototypes 1 | . 1 . . . . . . . . . . . . . . . Fabricator Hacks 8 | . . . . 1 2 . . . . . 4 . . 1 . . Network Status 1 | . . . . . . . . . . . . . . 1 . . Load Schematic 4 | . . . . 1 1 . . . . . 2 . . . . . Build 3 | . . . . . 1 . . . . . 2 . . . . . Repair Station Hacks . | . . . . . . . . . . . . . . . . . Recycling Unit Hacks . | . . . . . . . . . . . . . . . . . Scanalyzer 1 | . . . . . . . . . . . . . . 1 . . Insert Component 1 | . . . . . . . . . . . . . . 1 . . Garrison Access Hacks 2 | . . . 1 . . . . . . . . . . . . 1 Seal Access 2 | . . . 1 . . . . . . . . . . . . 1 Unauthorized Hacks . | . . . . . . . . . . . . . . . . . Terminals . | . . . . . . . . . . . . . . . . . Fabricators . | . . . . . . . . . . . . . . . . . Repair Stations . | . . . . . . . . . . . . . . . . . Recycling Units . | . . . . . . . . . . . . . . . . . Scanalyzers . | . . . . . . . . . . . . . . . . . Garrison Access . | . . . . . . . . . . . . . . . . . Data Cores Recovered 8 | . . . 1 . . 3 1 . . . . 1 . 1 1 . Used 4 | . . . 1 . . 1 . . . . . 1 . 1 . . Hacking Detections 25 | . 1 . . 3 2 2 6 3 . . 1 3 . 2 2 . Full Trace Events 9 | . 1 . . 3 1 . 2 1 . . 1 . . . . . Feedback Events 2 | . . . . 1 1 . . . . . . . . . . . Corruption 2 | . . . . 1 1 . . . . . . . . . . . Feedback Blocked . | . . . . . . . . . . . . . . . . . Robot Schematics Acquired 1 | . . . . . . . 1 . . . . . . . . . Robots Built 4 | . . . . . . . . . . . 4 . . . . . Matter 504 | . . . . . . . . . . . 504 . . . . . Time 111 | . . . . . . . . . . . 111 . . . . . Total Robot Build Rating 16 | . . . . . . . . . . . 16 . . . . . Part Schematics Acquired 1 | . . . . 1 . . . . . . . . . . . . Parts Built 2 | . . . . . 2 . . . . . . . . . . . Matter 212 | . . . . . 212 . . . . . . . . . . . Time 53 | . . . . . 53 . . . . . . . . . . . Total Part Build Rating 12 | . . . . . 12 . . . . . . . . . . . Parts Repaired . | . . . . . . . . . . . . . . . . . Time . | . . . . . . . . . . . . . . . . . Parts Recycled . | . . . . . . . . . . . . . . . . . Recycled Matter . | . . . . . . . . . . . . . . . . . Retrieved Matter . | . . . . . . . . . . . . . . . . . Retrieved Components . | . . . . . . . . . . . . . . . . . Parts Scanalyzed . | . . . . . . . . . . . . . . . . . Part Schematics Acquired . | . . . . . . . . . . . . . . . . . Parts Damaged . | . . . . . . . . . . . . . . . . . Bothacking | -11 -10 -9 -8 -7 -6 -5 -5 -5 -5 -5 -4 -3 -2 -2 -2 -1 ------------ Run | Scr Mat Mat Mat Fac Fac Fac Ext Cet Arc Hub Fac Res Res Tes Sec Acc Used RIF Installer . | . . . . . . . . . . . . . . . . . Robots Hacked . | . . . . . . . . . . . . . . . . . Non-combat . | . . . . . . . . . . . . . . . . . Combat . | . . . . . . . . . . . . . . . . . Robot Hacks Applied . | . . . . . . . . . . . . . . . . . Relay Couplers Released 2 | . . . . . . . . . . 2 . . . . . . Programmers 2 | . . . . . . . . . . 2 . . . . . . Robots Rewired . | . . . . . . . . . . . . . . . . . Allies Hacked . | . . . . . . . . . . . . . . . . . Hacks Repelled . | . . . . . . . . . . . . . . . . . Allies | -11 -10 -9 -8 -7 -6 -5 -5 -5 -5 -5 -4 -3 -2 -2 -2 -1 -------- Run | Scr Mat Mat Mat Fac Fac Fac Ext Cet Arc Hub Fac Res Res Tes Sec Acc Total Allies 12 | . . . . . . . 5 3 . . 4 . . . . . Largest Group 4 | . . . . . . . 3 4 2 2 4 4 1 1 . . Highest-Rated Group 417 | . . . . . . . 207 417 190 184 128 128 24 24 . . Highest-Rated Ally 156 | . . . . . . . 156 132 95 95 32 32 24 24 . . Total Orders 2 | . . . . . . . . . . . 1 1 . . . . STAY 1 | . . . . . . . . . . . . 1 . . . . GUARD 1 | . . . . . . . . . . . 1 . . . . . Ally Attacks 150 | . . . . . . . 44 38 9 15 15 25 1 3 . . Total Damage 4077 | . . . . . . . 951 1221 276 609 405 563 24 28 . . Kills 28 | . . . . . . . 6 9 1 4 4 4 . . . . Allies Corrupted 2 | . . . . . . . . . . 2 . . . . . . Allies Melted . | . . . . . . . . . . . . . . . . . Intel | -11 -10 -9 -8 -7 -6 -5 -5 -5 -5 -5 -4 -3 -2 -2 -2 -1 ------- Run | Scr Mat Mat Mat Fac Fac Fac Ext Cet Arc Hub Fac Res Res Tes Sec Acc Robot Analysis Total 1 | . . . . . . . . . . . . . . 1 . . Derelict Logs Recovered . | . . . . . . . . . . . . . . . . . Drone Launches . | . . . . . . . . . . . . . . . . . Drone Recoveries . | . . . . . . . . . . . . . . . . . Exploration | -11 -10 -9 -8 -7 -6 -5 -5 -5 -5 -5 -4 -3 -2 -2 -2 -1 ------------- Run | Scr Mat Mat Mat Fac Fac Fac Ext Cet Arc Hub Fac Res Res Tes Sec Acc Turns Passed 19449 | 67 968 1141 1142 858 1650 546 971 370 122 1120 1096 759 102 2027 4063 2447 Spaces Moved 11035 | 50 646 738 720 585 1071 380 604 211 71 619 645 493 75 1142 1716 1269 Core 12 | 12 . . . . . . . . . . . . . . . . Treads . | . . . . . . . . . . . . . . . . . Legs 11023 | 38 646 738 720 585 1071 380 604 211 71 619 645 493 75 1142 1716 1269 Wheels . | . . . . . . . . . . . . . . . . . Hover . | . . . . . . . . . . . . . . . . . Flight . | . . . . . . . . . . . . . . . . . Fastest Speed 50 | 50 120 120 120 123 120 120 120 120 120 110 110 106 113 110 112 113 Average Speed 117 | 103 120 120 127 125 122 120 120 120 120 114 110 111 113 112 112 114 Slowest Speed 200 | 120 120 120 200 127 127 120 120 120 120 120 110 113 113 186 116 116 Overloaded Moves . | . . . . . . . . . . . . . . . . . Propulsion Burnouts . | . . . . . . . . . . . . . . . . . Robots Hopped . | . . . . . . . . . . . . . . . . . Cave-ins Triggered 2 | . . . . . . . . . . . . . . . . 2 Exploration Rate (%) 46 | 4 96 66 65 18 27 13 77 77 73 43 20 17 5 83 71 39 Regions Visited 16 Branch Regions 6 Pre-discovered Areas . | . . . . . . . . . . . . . . . . . Known Exits Taken 16 | 1 1 1 1 1 1 1 1 1 1 1 1 1 1 1 1 . Unknown Exits Taken . | . . . . . . . . . . . . . . . . . Scrap Searched . | . . . . . . . . . . . . . . . . . Spaces Dug 16 | . . . . . . . . . . . 8 . . 4 1 3 Terrain Destroyed 1035 | . 6 31 . . 18 54 20 70 1 343 22 5 2 58 181 224 Melee 3 | . . . . . . . . . . . 1 . . 1 1 . Projectile 275 | . . . . . . . . . 1 20 16 5 2 18 70 143 AOE 757 | . 6 31 . . 18 54 20 70 . 323 5 . . 39 110 81 Terrain Rammed . | . . . . . . . . . . . . . . . . . Walls Destroyed . | . . . . . . . . . . . . . . . . . Machines Disabled . | . . . . . . . . . . . . . . . . . Actions | -11 -10 -9 -8 -7 -6 -5 -5 -5 -5 -5 -4 -3 -2 -2 -2 -1 --------- Run | Scr Mat Mat Mat Fac Fac Fac Ext Cet Arc Hub Fac Res Res Tes Sec Acc Total 15536 | 61 780 892 856 664 1304 444 778 289 93 883 943 646 85 1587 3309 1922 Wait 1923 | . 79 47 38 3 111 11 81 10 6 68 198 54 4 68 947 198 Move 11018 | 49 645 737 719 584 1070 379 603 210 70 618 644 492 74 1141 1715 1268 Hop . | . . . . . . . . . . . . . . . . . Pick Up 119 | 2 3 7 10 12 16 4 2 . . 4 1 16 . 16 24 2 Fast Attach 54 | 8 . 4 1 . 1 4 . 4 . 15 . . . 9 2 6 Attach 91 | 2 2 1 9 9 7 2 3 . . 3 . 11 . 15 23 4 Detach 6 | . . . 1 . . . 1 . . . . . . . 4 . Swap 37 | . 1 3 3 4 7 3 1 . . 2 1 1 . 3 7 1 Drop 125 | . 3 6 9 9 13 11 . 4 . 22 1 9 . 20 15 3 Fire 1200 | . 29 62 51 22 43 17 61 37 12 96 54 40 5 204 285 182 Melee 68 | . . . . . . . . . . 22 2 . . 6 38 . Ram . | . . . . . . . . . . . . . . . . . Kick 23 | . 8 . 2 . . . . . . 1 . . . 12 . . Crush . | . . . . . . . . . . . . . . . . . Escape Stasis 14 | . . . . . . . 4 . . . . . . 2 4 4 Rewire . | . . . . . . . . . . . . . . . . . Trap . | . . . . . . . . . . . . . . . . . Miscellaneous 858 | . 10 25 13 21 36 13 22 24 5 32 42 23 2 91 245 254 Route ------- -11/Scrapyard -10/Materials (discovered 5 exits: *Mat x3 / *Min x2) -9/Materials (discovered 2 exits: *Mat x2) -8/Materials (discovered 3 exits: *Fac x3) -7/Factory (discovered 2 exits: *Fac / *Low) -6/Factory (discovered 3 exits: *Fac / *Low x2) -5/Factory (discovered 5 exits: Fac x4 / *Ext) -5/Extension (discovered 3 exits: *Fac x2 / *Cet) -5/Cetus (discovered 2 exits: *Fac / *Arc) -5/Archives -5/Hub_04(d) (discovered 2 exits: *Fac x2) -4/Factory -3/Research -2/Research -2/Testing (discovered 2 exits: *Acc / *Sec) -2/Section 7 -1/Access To Epsilon Eridani History --------- Turn | Location | Event 3 | -11/Scrapyard | Upgraded with Power slot (x1) 3 | -11/Scrapyard | Upgraded with Propulsion slot (x1) 3 | -11/Scrapyard | Upgraded with Utility slot (x3) 3 | -11/Scrapyard | Upgraded with Weapon slot (x1) 4 | -11/Scrapyard | Identified exit to Materials 4 | -11/Scrapyard | Discovered exit to Materials (range 16) 68 | -11/Scrapyard | Entered Materials 220 | -10/Materials | Identified exit to Mines 220 | -10/Materials | Discovered exit to Mines (range 15) 296 | -10/Materials | Identified exit to Materials 296 | -10/Materials | Discovered exit to Materials (range 5) 311 | -10/Materials | Build established: Hacker-Mutant 424 | -10/Materials | Discovered exit to Mines (range 9) 655 | -10/Materials | Discovered exit to Materials (range 16) 702 | -10/Materials | Discovered exit to Materials (range 16) 1036 | -10/Materials | Entered another Materials area 1038 | -9/Materials | Reached level 2 1038 | -9/Materials | Reached level 3 1084 | -9/Materials | Reached level 4 1154 | -9/Materials | Identified exit to Materials 1154 | -9/Materials | Discovered exit to Materials (range 15) 1558 | -9/Materials | Reached level 5 1935 | -9/Materials | Discovered exit to Materials (range 16) 2177 | -9/Materials | Entered another Materials area 2179 | -8/Materials | Reached level 6 2179 | -8/Materials | Reached level 7 2201 | -8/Materials | Upgraded with Power slot (x1) 2201 | -8/Materials | Upgraded with Propulsion slot (x1) 2201 | -8/Materials | Upgraded with Utility slot (x1) 2475 | -8/Materials | Reached level 8 2619 | -8/Materials | Identified exit to Factory 2619 | -8/Materials | Discovered exit to Factory (range 15) 2987 | -8/Materials | Build established: Generator-Mutant 3139 | -8/Materials | Reached level 9 3319 | -8/Materials | Entered Factory 3321 | -7/Factory | Reached level 10 3323 | -7/Factory | Upgraded with Propulsion slot (x1) 3323 | -7/Factory | Upgraded with Weapon slot (x2) 3421 | -7/Factory | Identified exit to Lower Caves 3421 | -7/Factory | Discovered exit to Lower Caves (range 13) 3590 | -7/Factory | Garrison activated, responded to threat 3680 | -7/Factory | Build established: Generator-Gunner 3720 | -7/Factory | Reached level 11 4144 | -7/Factory | Identified exit to Factory 4144 | -7/Factory | Discovered exit to Factory (range 7) 4177 | -7/Factory | Entered another Factory area 4179 | -6/Factory | Reached level 12 4179 | -6/Factory | Reached level 13 4246 | -6/Factory | Upgraded with Utility slot (x1) 4494 | -6/Factory | Identified exit to Lower Caves 4494 | -6/Factory | Discovered exit to Lower Caves (range 15) 4556 | -6/Factory | Spotted B-75 Beast 4926 | -6/Factory | Reached level 14 5178 | -6/Factory | Reached level 15 5385 | -6/Factory | Local fabrication network quarantined 5404 | -6/Factory | Fabricated Wave Gun (x2) 5795 | -6/Factory | Identified exit to Factory 5795 | -6/Factory | Discovered exit to Factory (range 12) 5827 | -6/Factory | Entered another Factory area 5829 | -5/Factory | Reached level 16 5829 | -5/Factory | Reached level 17 6222 | -5/Factory | Identified exit to Factory 6311 | -5/Factory | Identified exit to Extension 6311 | -5/Factory | Discovered exit to Extension (range 14) 6343 | -5/Factory | Upgraded with Utility slot (x1) 6373 | -5/Factory | Entered Extension 6375 | -5/Extension | Reached level 18 6434 | -5/Extension | Rescued a captive Derelict 6476 | -5/Extension | Rescued A7 6493 | -5/Extension | Upgraded with Weapon slot (x1) 6514 | -5/Extension | Build established: Generator-Mutant 6621 | -5/Extension | Rescued a captive Derelict 6690 | -5/Extension | Reached level 19 6714 | -5/Extension | Spotted B-75 Beast 6741 | -5/Extension | Spotted B-75 Beast 6744 | -5/Extension | Destroyed B-75 Beast 6784 | -5/Extension | Destroyed B-75 Beast 6820 | -5/Extension | Discovered exit to Factory (range 3) 6954 | -5/Extension | Identified exit to Cetus 6954 | -5/Extension | Discovered exit to Cetus (range 15) 6955 | -5/Extension | Discovered exit to Factory (range 15) 7004 | -5/Extension | Rescued a captive Derelict 7021 | -5/Extension | Rescued a captive Derelict 7344 | -5/Extension | Entered Cetus 7344 | -5/Cetus | Accompanied by 3 allies (A7) 7346 | -5/Cetus | Reached level 20 7349 | -5/Cetus | Acquired a Cetus Manufacturing Module code from A7 7361 | -5/Cetus | Spotted Cetus Guard 7361 | -5/Cetus | Spotted Cetus Guard 7365 | -5/Cetus | Spotted Cetus Guard 7377 | -5/Cetus | Spotted Cetus Guard 7379 | -5/Cetus | Destroyed Cetus Guard 7385 | -5/Cetus | Destroyed Cetus Guard 7386 | -5/Cetus | Allies destroyed Cetus Guard 7387 | -5/Cetus | Destroyed Cetus Guard 7446 | -5/Cetus | Started Cetus Manufacturing Module 7456 | -5/Cetus | Escorted A7 to Cetus Mainframe 7471 | -5/Cetus | Manufactured an Enhanced Grunt 7496 | -5/Cetus | Manufactured an Enhanced Grunt 7521 | -5/Cetus | Manufactured an Enhanced Grunt 7524 | -5/Cetus | Cetus Manufacturing Module disabled 7531 | -5/Cetus | Allies destroyed A7 7531 | -5/Cetus | Reached level 21 7538 | -5/Cetus | Extracted ID and sensor layout for unrecognized location from A7's data core 7583 | -5/Cetus | Identified exit to Archives 7583 | -5/Cetus | Discovered exit to Archives (range 16) 7605 | -5/Cetus | Spotted Cetus Guard 7605 | -5/Cetus | Spotted Cetus Guard 7611 | -5/Cetus | Spotted Cetus Guard 7612 | -5/Cetus | Allies destroyed Cetus Guard 7615 | -5/Cetus | Spotted Cetus Guard 7617 | -5/Cetus | Destroyed Cetus Guard 7617 | -5/Cetus | Destroyed Cetus Guard 7626 | -5/Cetus | Allies destroyed Cetus Guard 7637 | -5/Cetus | Discovered exit to Factory (range 15) 7644 | -5/Cetus | Met Revision 17 7714 | -5/Cetus | Entered Archives 7714 | -5/Archives | Accompanied by 2 allies 7779 | -5/Archives | Identified exit to Hub_04(d) 7779 | -5/Archives | Discovered exit to Hub_04(d) (range 15) 7812 | -5/Archives | Unable to access archive contents 7836 | -5/Archives | Entered Hub_04(d) 7836 | -5/Hub_04(d) | Accompanied by 2 allies 7838 | -5/Hub_04(d) | Reached level 22 7985 | -5/Hub_04(d) | Discovered exit to Factory (range 9) 8162 | -5/Hub_04(d) | Discovered exit to Factory (range 9) 8277 | -5/Hub_04(d) | Network Hub disabled 8292 | -5/Hub_04(d) | Spotted Lightning 8298 | -5/Hub_04(d) | Garrison activated, responded to threat 8307 | -5/Hub_04(d) | Spotted Lightning 8309 | -5/Hub_04(d) | Spotted Lightning 8309 | -5/Hub_04(d) | Destroyed Lightning 8320 | -5/Hub_04(d) | Destroyed Lightning 8333 | -5/Hub_04(d) | Spotted Lightning 8364 | -5/Hub_04(d) | Spotted B-75 Beast 8365 | -5/Hub_04(d) | Destroyed Lightning 8379 | -5/Hub_04(d) | Destroyed Lightning 8383 | -5/Hub_04(d) | Found Prototype Energy Cannon 8383 | -5/Hub_04(d) | Identified EMDS 8390 | -5/Hub_04(d) | Found Prototype Device 8390 | -5/Hub_04(d) | Identified Exp. Phase Shifter 8395 | -5/Hub_04(d) | Found Prototype Processor 8395 | -5/Hub_04(d) | Identified Exp. Targeting Computer 8407 | -5/Hub_04(d) | Destroyed B-75 Beast 8413 | -5/Hub_04(d) | Found Prototype Device 8413 | -5/Hub_04(d) | Identified EM Dispersion Field 8417 | -5/Hub_04(d) | Upgraded with Power slot (x1) 8417 | -5/Hub_04(d) | Upgraded with Utility slot (x2) 8490 | -5/Hub_04(d) | Found EMDS 8582 | -5/Hub_04(d) | Spotted Lightning 8594 | -5/Hub_04(d) | Reached level 23 8629 | -5/Hub_04(d) | Destroyed Lightning 8846 | -5/Hub_04(d) | Network Hub disabled 8920 | -5/Hub_04(d) | Build established: Scavenger-Gunner 8956 | -5/Hub_04(d) | Entered Factory 9134 | -4/Factory | Reached level 24 9206 | -4/Factory | First assault squad dispatched 9340 | -4/Factory | Destroyed 11 combat bots 9455 | -4/Factory | Fabricated Y-54 Guardian (x2) 9491 | -4/Factory | Build established: Scavenger-Tank 9709 | -4/Factory | Reached level 25 9799 | -4/Factory | Identified exit to Research 9799 | -4/Factory | Discovered exit to Research (range 14) 9878 | -4/Factory | Fabricated Y-54 Guardian (x2) 10052 | -4/Factory | Entered Research 10052 | -3/Research | Accompanied by 4 allies 10054 | -3/Research | Reached level 26 10234 | -3/Research | Upgraded with Propulsion slot (x2) 10275 | -3/Research | Found Antimissile System 10291 | -3/Research | Reached level 27 10302 | -3/Research | First assault squad dispatched 10306 | -3/Research | Found Enh. Force Lance 10649 | -3/Research | Found Gamma Bomb Array 10653 | -3/Research | Found Prototype Slashing Weapon 10654 | -3/Research | Identified Nanosword 10723 | -3/Research | Identified exit to Research 10723 | -3/Research | Discovered exit to Research (range 14) 10795 | -3/Research | P-80 Master assimilated allied Guardian 7a 10811 | -3/Research | Entered another Research area 10811 | -2/Research | Accompanied by 1 ally 10813 | -2/Research | Reached level 28 10877 | -2/Research | Reached level 29 10899 | -2/Research | Identified exit to Testing 10899 | -2/Research | Discovered exit to Testing (range 5) 10913 | -2/Research | Entered Testing 10913 | -2/Testing | Accompanied by 1 ally 10939 | -2/Testing | Upgraded with Utility slot (x1) 10939 | -2/Testing | Upgraded with Weapon slot (x1) 10952 | -2/Testing | Reached level 30 10998 | -2/Testing | Spotted PD-IA1V3LFT05 11196 | -2/Testing | Scanned by Researcher 11303 | -2/Testing | Reached level 31 11324 | -2/Testing | Destroyed 13 combat bots 11488 | -2/Testing | Identified exit to Access 11488 | -2/Testing | Discovered exit to Access (range 5) 11502 | -2/Testing | Build established: Scavenger-Executioner 11547 | -2/Testing | Found Prototype Processor 11548 | -2/Testing | Identified Spectral Analyzer 11626 | -2/Testing | Found Prototype Device 11627 | -2/Testing | Identified Exp. Focal Shield 11651 | -2/Testing | Found Prototype Hackware 11652 | -2/Testing | Identified System Mapper 11663 | -2/Testing | First assault squad dispatched 11774 | -2/Testing | Spotted Striker 11791 | -2/Testing | Spotted Striker 11810 | -2/Testing | Destroyed Striker 11828 | -2/Testing | Destroyed Striker 11848 | -2/Testing | Spotted Alpha 7 11908 | -2/Testing | Destroyed Alpha 7 11970 | -2/Testing | Stole the SGEMP Prototype 12198 | -2/Testing | Spotted PP-S3UPT3N6VR 12244 | -2/Testing | Reached level 32 12283 | -2/Testing | Destroyed 9 combat bots 12507 | -2/Testing | Spotted Fortress 12664 | -2/Testing | Destroyed Fortress 12934 | -2/Testing | Identified exit to Section 7 12934 | -2/Testing | Discovered exit to Section 7 (range 6) 12940 | -2/Testing | Entered Section 7 12975 | -2/Section 7 | Spotted S7 Guard 13067 | -2/Section 7 | Spotted B-90 Cyclops 13114 | -2/Section 7 | Discovered exit to Access (range 13) 13173 | -2/Section 7 | Destroyed B-90 Cyclops 13360 | -2/Section 7 | Reached level 33 13521 | -2/Section 7 | Spotted Alpha 7 13545 | -2/Section 7 | Spotted Alpha 7 13666 | -2/Section 7 | Destroyed Alpha 7 13708 | -2/Section 7 | Destroyed Alpha 7 13726 | -2/Section 7 | First assault squad dispatched 13742 | -2/Section 7 | Destroyed 9 combat bots 13746 | -2/Section 7 | Found Prototype Processor 13747 | -2/Section 7 | Identified Exp. Target Analyzer 13835 | -2/Section 7 | Found Prototype Launcher 13836 | -2/Section 7 | Identified Tactical Quantum Warhead 13923 | -2/Section 7 | Spotted B-99 Colossus 13990 | -2/Section 7 | Scanned by Researcher 13997 | -2/Section 7 | Found Alien Artifact 13998 | -2/Section 7 | Identified Integrated Dissipator 13998 | -2/Section 7 | Installed Integrated Dissipator, increased core heat dissipation (+20) 14081 | -2/Section 7 | Intercept squad dispatched 14091 | -2/Section 7 | Found Alien Artifact 14092 | -2/Section 7 | Identified LRC Matter Compressor 14092 | -2/Section 7 | Installed LRC Matter Compressor, increased matter storage capacity (+125) 14094 | -2/Section 7 | Found Alien Artifact 14095 | -2/Section 7 | Identified LRC Boosters 14095 | -2/Section 7 | Installed LRC Boosters, increased mass support (+10) 14099 | -2/Section 7 | Spotted Tracker 14100 | -2/Section 7 | Spotted Tracker 14104 | -2/Section 7 | Destroyed Tracker 14120 | -2/Section 7 | Destroyed Tracker 14150 | -2/Section 7 | Spotted Combat Programmer 14152 | -2/Section 7 | Spotted Combat Programmer 14160 | -2/Section 7 | Destroyed Combat Programmer 14168 | -2/Section 7 | Destroyed Combat Programmer 14195 | -2/Section 7 | Destroyed 18 combat bots 14335 | -2/Section 7 | High security lockdown imminent 14349 | -2/Section 7 | Found Alien Artifact 14352 | -2/Section 7 | Identified Integrated Reactor 14352 | -2/Section 7 | Installed Integrated Reactor, increased core energy generation (+10) 14353 | -2/Section 7 | Found Integrated Reactor 14355 | -2/Section 7 | Found Integrated Reactor 14355 | -2/Section 7 | Installed Integrated Reactor, increased core energy generation (+10) 14356 | -2/Section 7 | Installed Integrated Reactor, increased core energy generation (+10) 14362 | -2/Section 7 | Reached level 34 14415 | -2/Section 7 | High security lockdown engaged 14416 | -2/Section 7 | Destroyed 10 combat bots 14505 | -2/Section 7 | Spotted Executioner 14505 | -2/Section 7 | Spotted Executioner 14588 | -2/Section 7 | Destroyed Executioner 14597 | -2/Section 7 | Destroyed Executioner 14625 | -2/Section 7 | Spotted Executioner 14627 | -2/Section 7 | Core integrity fell below 50% 14650 | -2/Section 7 | Destroyed 19 combat bots 14664 | -2/Section 7 | Destroyed Executioner 14669 | -2/Section 7 | Spotted Striker 14671 | -2/Section 7 | Spotted Investigator 14684 | -2/Section 7 | Destroyed Investigator 14745 | -2/Section 7 | Found Prototype Launcher 14746 | -2/Section 7 | Identified Containment Facilitator 14774 | -2/Section 7 | Intercept squad dispatched 14785 | -2/Section 7 | Spotted Striker 14785 | -2/Section 7 | Spotted Striker 14790 | -2/Section 7 | Spotted Striker 14790 | -2/Section 7 | Spotted Executioner 14790 | -2/Section 7 | Spotted Investigator 14792 | -2/Section 7 | Destroyed Investigator 14795 | -2/Section 7 | Spotted Tracker 14795 | -2/Section 7 | Spotted Tracker 14796 | -2/Section 7 | Spotted Tracker 14800 | -2/Section 7 | Destroyed Tracker 14806 | -2/Section 7 | Destroyed Striker 14812 | -2/Section 7 | Destroyed Executioner 14816 | -2/Section 7 | Destroyed Tracker 14836 | -2/Section 7 | Spotted Combat Programmer 14842 | -2/Section 7 | Destroyed Striker 14847 | -2/Section 7 | Spotted Combat Programmer 14847 | -2/Section 7 | Spotted Combat Programmer 14859 | -2/Section 7 | Core integrity fell below 20% 14868 | -2/Section 7 | Destroyed Tracker 14892 | -2/Section 7 | Destroyed Combat Programmer 14896 | -2/Section 7 | Spotted Striker 14913 | -2/Section 7 | Destroyed 17 combat bots 14918 | -2/Section 7 | Destroyed Combat Programmer 14929 | -2/Section 7 | Destroyed Combat Programmer 14990 | -2/Section 7 | Spotted Executioner 14992 | -2/Section 7 | Spotted Executioner 15000 | -2/Section 7 | Destroyed Executioner 15007 | -2/Section 7 | Sterilization system engaged 15007 | -2/Section 7 | Non-combat units ordered to evacuate 15013 | -2/Section 7 | Destroyed Executioner 15031 | -2/Section 7 | Spotted Executioner 15031 | -2/Section 7 | Spotted Striker 15033 | -2/Section 7 | Destroyed Striker 15073 | -2/Section 7 | Destroyed Executioner 15107 | -2/Section 7 | Combat units ordered to evacuate 15119 | -2/Section 7 | Destroyed 24 combat bots 15285 | -2/Section 7 | Build established: Generator-Executioner 15301 | -2/Section 7 | Destroyed B-99 Colossus 15307 | -2/Section 7 | Ambient heat levels rising (+10) 15457 | -2/Section 7 | Ambient heat levels rising (+10) 15493 | -2/Section 7 | Found Tactical Quantum Warhead 15607 | -2/Section 7 | Ambient heat levels rising (+10) 15694 | -2/Section 7 | Spotted S7 Guard 15757 | -2/Section 7 | Ambient heat levels rising (+10) 15849 | -2/Section 7 | Build established: Generator-Mutant 15907 | -2/Section 7 | Ambient heat levels rising (+10) 16057 | -2/Section 7 | Ambient heat levels rising (+10) 16207 | -2/Section 7 | Ambient heat levels rising (+10) 16210 | -2/Section 7 | Build established: Generator-Executioner 16357 | -2/Section 7 | Ambient heat levels rising (+10) 16507 | -2/Section 7 | Ambient heat levels rising (+10) 16657 | -2/Section 7 | Ambient heat levels rising (+10) 16807 | -2/Section 7 | Ambient heat levels rising (+10) 16957 | -2/Section 7 | Ambient heat levels rising (+10) 17003 | -2/Section 7 | Entered Access 17005 | -1/Access | Reached level 35 17280 | -1/Access | First assault squad dispatched 17401 | -1/Access | Intercept squad dispatched 17418 | -1/Access | Spotted Tracker 17418 | -1/Access | Spotted Tracker 17430 | -1/Access | High security lockdown imminent 17430 | -1/Access | Destroyed Tracker 17436 | -1/Access | Destroyed Tracker 17453 | -1/Access | Spotted Combat Programmer 17474 | -1/Access | Destroyed Combat Programmer 17510 | -1/Access | High security lockdown engaged 17512 | -1/Access | Spotted Combat Programmer 17519 | -1/Access | Destroyed Combat Programmer 17568 | -1/Access | Destroyed 10 combat bots 17598 | -1/Access | Spotted Executioner 17598 | -1/Access | Spotted Executioner 17603 | -1/Access | Reached level 36 17603 | -1/Access | Destroyed Executioner 17614 | -1/Access | Destroyed Executioner 17641 | -1/Access | Destroyed 13 combat bots 17682 | -1/Access | Spotted Investigator 17689 | -1/Access | Destroyed Investigator 17728 | -1/Access | Destroyed 12 combat bots 17736 | -1/Access | Destroyed Striker 17738 | -1/Access | Spotted Striker 17738 | -1/Access | Spotted Striker 17744 | -1/Access | Destroyed Striker 17747 | -1/Access | Destroyed Striker 17790 | -1/Access | Destroyed 9 combat bots 17873 | -1/Access | Garrison activated, responded to threat 17874 | -1/Access | Destroyed 9 combat bots 17884 | -1/Access | Spotted Investigator 17886 | -1/Access | Destroyed Investigator 17892 | -1/Access | Spotted Striker 17892 | -1/Access | Spotted Striker 17892 | -1/Access | Spotted Striker 17892 | -1/Access | Destroyed Striker 17899 | -1/Access | Destroyed Striker 17905 | -1/Access | Destroyed Striker 17959 | -1/Access | Reached level 37 18005 | -1/Access | Destroyed 28 combat bots 18058 | -1/Access | Destroyed 11 combat bots 18076 | -1/Access | Spotted Executioner 18076 | -1/Access | Spotted Executioner 18082 | -1/Access | Destroyed Executioner 18087 | -1/Access | Destroyed Executioner 18087 | -1/Access | Spotted Striker 18088 | -1/Access | Crushed by falling debris 18090 | -1/Access | Destroyed Striker 18132 | -1/Access | Spotted Executioner 18132 | -1/Access | Spotted Executioner 18135 | -1/Access | Destroyed 13 combat bots 18140 | -1/Access | Spotted Striker 18141 | -1/Access | Destroyed Executioner 18144 | -1/Access | Destroyed Striker 18172 | -1/Access | Destroyed 10 combat bots 18196 | -1/Access | Sterilization system engaged 18214 | -1/Access | Destroyed Executioner 18496 | -1/Access | Ambient heat levels rising (+10) 18646 | -1/Access | Ambient heat levels rising (+10) 18796 | -1/Access | Ambient heat levels rising (+10) 18946 | -1/Access | Ambient heat levels rising (+10) 18993 | -1/Access | Spotted B-99 Colossus 19038 | -1/Access | Destroyed B-99 Colossus 19096 | -1/Access | Ambient heat levels rising (+10) 19245 | -1/Access | Spotted B-99 Colossus 19246 | -1/Access | Ambient heat levels rising (+10) 19281 | -1/Access | Spotted B-99 Colossus 19296 | -1/Access | Spotted B-99 Colossus 19327 | -1/Access | Crushed by falling debris 19342 | -1/Access | Destroyed B-99 Colossus 19367 | -1/Access | Destroyed B-99 Colossus 19396 | -1/Access | Ambient heat levels rising (+10) 19419 | -1/Access | Identified exit to Surface 19419 | -1/Access | Discovered exit to Surface (range 7) 19450 | *** | Escaped! Last Messages --------------- 19360_ Slug penetrates B-99 Colossus. 19363_ EMDS Slug penetrates B-99 Colossus. 19363_ Slug penetrates B-99 Colossus. 19363_ B-99 Colossus suffers critical hit. 19366_ Knocked back. 19366_ Penetrated by Slug. 19366_ Slug penetrates Wall. 19367_ Slug penetrates B-99 Colossus. 19367_ B-99 Colossus destroyed. 19375_ The unstable cave ceiling collapses. 19386_ Used Protomatter to restore core integrity (+288, depleted) 19396_ ALERT: Ambient heat levels +10. 19405_ Used Protomatter to restore core integrity (+291, depleted) 19406_ EMDS Slug penetrates Sealed Heavy Doors. 19412_ Slug penetrates Main Access Shell. 19412_ Slug penetrates Sealed Barrier. 19419_ EXIT=FOUND: SURFACE 19442_ EMDS Slug penetrates Main Access Shell. [Achievement: Magneto] [Achievement: Punisher] Map ----- +----------------------------------------------------+ | ?????????????????????????????????????????# #??? | | ?????????????????????????????????###+##### #??? | | ??????????????????????????+ % #??? | | ?????????????????????????????????############ #??? | | ????????????????????????????????????????????# #??? | | ????????????????????????????????????????????# #??? | | ????????????????????????????????????????????# #??? | | ????????????????????????????????????????????# #??? | | ???????????????????????????????????????????## #### | | ???????????????????????????????????????????# | | ???????????????????????????????????????????# | | ???????????????????????????????????????????# | | ???????????????????????????????????????????# | | ???????????????????????????????????????????# ## | | ???????????????????????????????????????????# # | | ???????????????????????????????????????????# # | | ???????????????????????????????????????????# # | | ???????????????????????????????????????????# # | | ???????????????????????????????????????????# # | | ????????????????????"##########??#########?# # | | ????????????????????" "??" *=[ ### # | | ????????????????????" """" ! ! # # | | ????????????????????" """ "" ]!! | | ????????????????????" " """" | | ????????????????????" "" " "??" | | ????????????????????" " @" " "??" | | ????????????????????" " " "??" ## | | ????????????????????" """ "" "??" #+ #? | | ????????????????????" "??" # | | ????????????????????" "??" # | | ????????????????????"##########??#########! | | ?????????????????????????????????????????# | | ?????????????????????????????????????????# | | ?????????????????????????????????????????# | | ?????????????????????????????????????????# | | ?????????????????????????????????????????# | | ?????????????????????????????????????????# | | ?????????????????????????????????????????## # | | ??????????????????????????????????????????# | | ??????????????????????????????????????????###### | | ????????????????????????????????????????????????## | | ?????????????????????????????????????????????????? | | ?????????????????????????????????????????????????? | | ?????????????????????????????????????????????????? | | ?????????????????????????????????????????????????? | | ?????????????????????????????????????????????????? | | ?????????????????????????????????????????????????? | | ?????????????????????????????????????????????????? | | ?????????????????????????????????????????????????? | | ?????????????????????????????????????????????????? | +----------------------------------------------------+ Best States ------------- Heat Dissipation 178 Energy Generation 151 Energy Capacity 1445 Matter Stores 925 Matter Capacity 925 Sight Range 24 Terrain Scan Density 10 ECM Strength 3 Jamming Range 12 Power Amplification 60 Base Temperature (-) 200 Armor Coverage 150 Resistance: KI 65 Resistance: TH 50 Resistance: EX 35 Resistance: EM 100 Resistance: I 35 Resistance: S 35 Resistance: P 35 Utility Shielding 33 Weapon Cycling 20 Phase Shifting 20 Evasion (%) 75 Targeting Accuracy 12 Target Analysis 12 Offensive Hacking 20 Item Schematics ----------------- Wave Gun | -7/Factory | Hacked Robot Schematics ------------------ Y-54 Guardian | -5/Extension | Hacked Fabricated ------------ Wave Gun | x2 | -6/Factory Y-54 Guardian | x2 | -4/Factory Y-54 Guardian | x2 | -4/Factory Alien Tech Used ----------------- Integrated Dissipator LRC Matter Compressor LRC Boosters Integrated Reactor Achievements -------------- Collateral Damage Magneto Punisher Shocking Conclusion Sniper Challenges ------------ None RPGLIKE | -11 -10 -9 -8 -7 -6 -5 -5 -5 -5 -5 -4 -3 -2 -2 -2 -1 --------- Run | Scr Mat Mat Mat Fac Fac Fac Ext Cet Arc Hub Fac Res Res Tes Sec Acc Levels Raised 36 | . . 4 4 2 4 2 2 2 . 2 2 2 2 3 2 3 XP Earned 60921 | 6000 1160 6306 4828 3594 6180 2504 3729 2348 476 2231 3055 3476 2392 4972 3638 4032 XP Spent 56650 | 5350 . 3325 5800 3960 6650 4670 1400 . . 6000 3050 3100 . 9020 3125 1200 Upgrades 113 | 10 . 8 10 15 7 18 1 . . 3 10 2 . 18 8 3 Power Slot 3 | 1 . . 1 . . . . . . 1 . . . . . . Propulsion Slot 5 | 1 . . 1 1 . . . . . . . 2 . . . . Utility Slot 9 | 3 . . 1 . 1 1 . . . 2 . . . 1 . . Weapon Slot 5 | 1 . . . 2 . . 1 . . . . . . 1 . . Core Integrity 33 | . . . . 12 . 6 . . . . . . . 10 5 . Heat Dissipation 17 | . . . . . . 11 . . . . . . . 6 . . Energy Generation 3 | . . . 3 . . . . . . . . . . . . . Energy Storage 8 | . . 6 2 . . . . . . . . . . . . . Matter Storage 10 | . . . 2 . . . . . . . 5 . . . . 3 Mass Support 2 | 2 . . . . . . . . . . . . . . . . Inventory Capacity 6 | 2 . 2 . . 2 . . . . . . . . . . . Ranged Accuracy 4 | . . . . . 4 . . . . . . . . . . . KI Resistance % 2 | . . . . . . . . . . . 2 . . . . . TH Resistance % 3 | . . . . . . . . . . . 3 . . . . . KI Damage % 3 | . . . . . . . . . . . . . . . 3 . Protomatter Created 13934 | . 109 408 161 205 271 179 337 89 172 556 608 464 62 1995 4134 4184 Integrity Restored 18542 | . 145 462 241 492 764 262 458 477 100 675 906 438 11 1828 5586 5697 Core 14097 | . 88 288 230 492 504 136 349 306 39 657 542 148 8 1354 4959 3997 Parts 4445 | . 57 174 11 . 260 126 109 171 61 18 364 290 3 474 627 1700 Protomatter Decayed 8330 | . 55 244 79 41 12 29 372 272 . 445 363 375 36 1066 2702 2239 Game ------ Seed GravmagDynamicManipulator Manual? 0 Play Time 03:28:31 Cumulative 96.4 hours Start 2021.02.10 @ 11:44:26 End 2021.02.10 @ 21:06:02 Sessions 2 Manual Loads 0 Difficulty Explorer Special Mode Winter2019/RPGLIKE Game No. 22 Rogue 0 Adventurer 0 Explorer 22 Win Type 0 Total 5 Types 4/0/1/0/0/0/0/0/0 Lore% 44 Gallery% 60 Achievement% 53 Wizard Run 0 Options --------- ASCII 1 Keyboard 0 Movement Mouse Keybinds 0 Fullscreen 1 Font 18/Smallcaps Map View 76x50 Tactical HUD 1 Map Filters NONE Filters NONE Steam 1 RUN: 99c405d6-747a-47ec-b675-9254852486f8